[Event "Titled Tuesday Blitz August 16 Early 2022"]
[White "Molina, Roberto Junio Brito"]
[Black "Yurovskykh, Oleksandr"]
[WhiteFideId "2109450"]
[BlackFideId "14134020"]
[WhiteElo "2403"]
[BlackElo "2292"]
[Result "1/2-1/2"]
[Round "02"]
[TimeControl "180+1"]
[Date "2022.08.16"]
[WhiteClock "0:00:05"]
[BlackClock "0:00:06"]

1. d4 {[%clk 0:03:00]}  d5 {[%clk 0:02:57]} 2. Nf3 {[%clk 0:03:01]}  Nf6 {[%clk 0:02:56]} 3. e3 {[%clk 0:03:01]}  c5 {[%clk 0:02:55]} 4. c3 {[%clk 0:03:01]}  Nbd7 {[%clk 0:02:50]} 5. Nbd2 {[%clk 0:03:00]}  e6 {[%clk 0:02:51]} 6. Bd3 {[%clk 0:02:59]}  Bd6 {[%clk 0:02:51]} 7. O-O {[%clk 0:02:58]}  O-O {[%clk 0:02:52]} 8. e4 {[%clk 0:02:59]}  cxd4 {[%clk 0:02:49]} 9. cxd4 {[%clk 0:02:55]}  dxe4 {[%clk 0:02:49]} 10. Nxe4 {[%clk 0:02:56]}  Nxe4 {[%clk 0:02:50]} 11. Bxe4 {[%clk 0:02:56]}  Nf6 {[%clk 0:02:50]} 12. Bc2 {[%clk 0:02:57]}  b6 {[%clk 0:02:44]} 13. Bg5 {[%clk 0:02:56]}  Bb7 {[%clk 0:02:43]} 14. Qe2 {[%clk 0:02:56]}  Be7 {[%clk 0:02:38]} 15. Rad1 {[%clk 0:02:54]}  Qd5 {[%clk 0:02:30]} 16. a3 {[%clk 0:02:52]}  Rac8 {[%clk 0:02:30]} 17. Bb1 {[%clk 0:02:44]}  h6 {[%clk 0:02:22]} 18. Bh4 {[%clk 0:02:43]}  Rfd8 {[%clk 0:02:14]} 19. Rd2 {[%clk 0:02:36]}  Qh5 {[%clk 0:02:05]} 20. Bg3 {[%clk 0:02:33]}  Bxf3 {[%clk 0:02:04]} 21. Qxf3 {[%clk 0:02:29]}  Qxf3 {[%clk 0:02:03]} 22. gxf3 {[%clk 0:02:30]}  Nd5 {[%clk 0:02:03]} 23. Rfd1 {[%clk 0:02:17]}  Bg5 {[%clk 0:02:01]} 24. Re2 {[%clk 0:02:17]}  Rc6 {[%clk 0:02:00]} 25. Be4 {[%clk 0:02:14]}  h5 {[%clk 0:01:33]} 26. f4 {[%clk 0:02:10]}  Bf6 {[%clk 0:01:32]} 27. f5 {[%clk 0:02:07]}  Rc4 {[%clk 0:01:20]} 28. fxe6 {[%clk 0:02:06]}  fxe6 {[%clk 0:01:20]} 29. Be5 {[%clk 0:01:49]}  Rdc8 {[%clk 0:01:12]} 30. Bxd5 {[%clk 0:01:43]}  exd5 {[%clk 0:01:12]} 31. Bxf6 {[%clk 0:01:43]}  gxf6 {[%clk 0:01:13]} 32. Kg2 {[%clk 0:01:37]}  Kf7 {[%clk 0:01:10]} 33. Kf3 {[%clk 0:01:36]}  Rc2 {[%clk 0:01:07]} 34. Rdd2 {[%clk 0:01:33]}  Rxd2 {[%clk 0:01:07]} 35. Rxd2 {[%clk 0:01:33]}  Rc4 {[%clk 0:01:03]} 36. Ke3 {[%clk 0:01:33]}  Kg6 {[%clk 0:01:01]} 37. f3 {[%clk 0:01:30]}  Kf5 {[%clk 0:01:01]} 38. Rg2 {[%clk 0:01:29]}  a5 {[%clk 0:01:01]} 39. h4 {[%clk 0:01:27]}  a4 {[%clk 0:01:00]} 40. Kd3 {[%clk 0:01:25]}  b5 {[%clk 0:00:55]} 41. Rg8 {[%clk 0:01:17]}  b4 {[%clk 0:00:39]} 42. Rd8 {[%clk 0:01:15]}  Ke6 {[%clk 0:00:34]} 43. Ra8 {[%clk 0:01:06]}  b3 {[%clk 0:00:33]} 44. Ra6+ {[%clk 0:01:04]}  Kf5 {[%clk 0:00:33]} 45. Ke3 {[%clk 0:00:54]}  Rc2 {[%clk 0:00:33]} 46. Rxa4 {[%clk 0:00:54]}  Rxb2 {[%clk 0:00:33]} 47. Rb4 {[%clk 0:00:54]}  Rb1 {[%clk 0:00:29]} 48. Kd2 {[%clk 0:00:41]}  Kf4 {[%clk 0:00:25]} 49. Rb6 {[%clk 0:00:38]}  f5 {[%clk 0:00:25]} 50. Rd6 {[%clk 0:00:34]}  Ra1 {[%clk 0:00:20]} 51. Kc3 {[%clk 0:00:33]}  Rxa3 {[%clk 0:00:20]} 52. Rxd5 {[%clk 0:00:33]}  b2+ {[%clk 0:00:18]} 53. Kxb2 {[%clk 0:00:33]}  Rxf3 {[%clk 0:00:19]} 54. Kc2 {[%clk 0:00:33]}  Kg4 {[%clk 0:00:17]} 55. Re5 {[%clk 0:00:30]}  Kxh4 {[%clk 0:00:14]} 56. d5 {[%clk 0:00:30]}  Kg5 {[%clk 0:00:15]} 57. d6 {[%clk 0:00:30]}  Rf2+ {[%clk 0:00:10]} 58. Kc3 {[%clk 0:00:30]}  Rf1 {[%clk 0:00:09]} 59. Kc2 {[%clk 0:00:30]}  Rf2+ {[%clk 0:00:09]} 60. Kd3 {[%clk 0:00:28]}  Rf1 {[%clk 0:00:09]} 61. Ke2 {[%clk 0:00:27]}  Rf4 {[%clk 0:00:07]} 62. Ke3 {[%clk 0:00:20]}  Rf1 {[%clk 0:00:01]} 63. Kd2 {[%clk 0:00:14]}  Rf2+ {[%clk 0:00:01]} 64. Kd3 {[%clk 0:00:10]}  Rf3+ {[%clk 0:00:01]} 65. Kc4 {[%clk 0:00:04]}  Rf1 {[%clk 0:00:02]} 66. d7 {[%clk 0:00:04]}  Rc1+ {[%clk 0:00:02]} 67. Kd5 {[%clk 0:00:01]}  Rd1+ {[%clk 0:00:03]} 68. Ke6 {[%clk 0:00:02]}  Rxd7 {[%clk 0:00:02]} 69. Kxd7 {[%clk 0:00:01]}  h4 {[%clk 0:00:03]} 70. Ke6 {[%clk 0:00:02]}  h3 {[%clk 0:00:03]} 71. Rxf5+ {[%clk 0:00:03]}  Kg4 {[%clk 0:00:04]} 72. Rf8 {[%clk 0:00:03]}  h2 {[%clk 0:00:04]} 73. Rh8 {[%clk 0:00:03]}  Kg3 {[%clk 0:00:04]} 74. Ke5 {[%clk 0:00:04]}  Kg2 {[%clk 0:00:05]} 75. Kf4 {[%clk 0:00:05]}  h1=Q {[%clk 0:00:05]} 76. Rxh1 {[%clk 0:00:05]}  Kxh1 {[%clk 0:00:06]} 1/2-1/2


[Site "https://www.chess.com"]

[Event "Titled Tuesday Blitz August 16 Early 2022"]
[White "Munkhgal, Gombosuren"]
[Black "Vovk, Orest"]
[WhiteFideId "4901266"]
[BlackFideId "14113490"]
[WhiteElo "2576"]
[BlackElo "2203"]
[Result "1-0"]
[Round "02"]
[TimeControl "180+1"]
[Date "2022.08.16"]
[WhiteClock "0:00:13"]
[BlackClock "0:00:01"]

1. d4 {[%clk 0:03:00]}  h6 {[%clk 0:02:59]} 2. e4 {[%clk 0:03:00]}  g5 {[%clk 0:02:59]} 3. h4 {[%clk 0:03:00]}  g4 {[%clk 0:02:59]} 4. h5 {[%clk 0:03:00]}  Bg7 {[%clk 0:02:58]} 5. c3 {[%clk 0:02:58]}  d5 {[%clk 0:02:57]} 6. e5 {[%clk 0:02:58]}  c5 {[%clk 0:02:57]} 7. Be2 {[%clk 0:02:58]}  f5 {[%clk 0:02:51]} 8. f3 {[%clk 0:02:54]}  Nc6 {[%clk 0:02:47]} 9. fxg4 {[%clk 0:02:53]}  cxd4 {[%clk 0:02:42]} 10. cxd4 {[%clk 0:02:51]}  Qb6 {[%clk 0:02:42]} 11. Nc3 {[%clk 0:02:30]}  Qxd4 {[%clk 0:02:40]} 12. Nxd5 {[%clk 0:02:25]}  Bxe5 {[%clk 0:02:35]} 13. Be3 {[%clk 0:01:43]}  Bg3+ {[%clk 0:02:15]} 14. Kf1 {[%clk 0:01:42]}  Qxb2 {[%clk 0:02:03]} 15. Rb1 {[%clk 0:01:40]}  Qe5 {[%clk 0:01:48]} 16. Nf3 {[%clk 0:01:37]}  Qe4 {[%clk 0:01:22]} 17. g5 {[%clk 0:01:08]}  e6 {[%clk 0:01:06]} 18. Bf2 {[%clk 0:00:52]}  Qxd5 {[%clk 0:00:22]} 19. Qxd5 {[%clk 0:00:51]}  exd5 {[%clk 0:00:23]} 20. Bxg3 {[%clk 0:00:51]}  hxg5 {[%clk 0:00:23]} 21. Nxg5 {[%clk 0:00:52]}  Nf6 {[%clk 0:00:19]} 22. h6 {[%clk 0:00:52]}  Ne4 {[%clk 0:00:18]} 23. Bf4 {[%clk 0:00:51]}  Nxg5 {[%clk 0:00:17]} 24. Bxg5 {[%clk 0:00:51]}  b6 {[%clk 0:00:11]} 25. h7 {[%clk 0:00:51]}  Kf7 {[%clk 0:00:10]} 26. Bf3 {[%clk 0:00:45]}  Be6 {[%clk 0:00:09]} 27. Re1 {[%clk 0:00:44]}  Nd4 {[%clk 0:00:08]} 28. Bh5+ {[%clk 0:00:42]}  Kg7 {[%clk 0:00:08]} 29. Bc1 {[%clk 0:00:42]}  Kf6 {[%clk 0:00:02]} 30. Bb2 {[%clk 0:00:42]}  Kg5 {[%clk 0:00:02]} 31. Bxd4 {[%clk 0:00:42]}  Rxh7 {[%clk 0:00:03]} 32. Rxe6 {[%clk 0:00:42]}  Rxh5 {[%clk 0:00:02]} 33. Be3+ {[%clk 0:00:29]}  f4 {[%clk 0:00:02]} 34. Bxf4+ {[%clk 0:00:26]}  Kg4 {[%clk 0:00:02]} 35. Rxh5 {[%clk 0:00:21]}  Kxh5 {[%clk 0:00:02]} 36. Re5+ {[%clk 0:00:14]}  Kg4 {[%clk 0:00:02]} 37. g3 {[%clk 0:00:14]}  Rc8 {[%clk 0:00:01]} 38. Rxd5 {[%clk 0:00:13]} 1-0


[Site "https://www.chess.com"]

[Event "Titled Tuesday Blitz August 16 Early 2022"]
[White "Nathan, Nitish"]
[Black "Horak, Martin"]
[WhiteFideId "30927870"]
[BlackFideId "367095"]
[WhiteElo "1813"]
[BlackElo "1997"]
[Result "1/2-1/2"]
[Round "02"]
[TimeControl "180+2"]
[Date "2022.08.18"]
[WhiteClock "0:00:00"]
[BlackClock "0:00:00"]

1. d4 {[%clk 0:00:00]}  Nf6 {[%clk 0:00:00]} 2. Bf4 {[%clk 0:00:00]}  d5 {[%clk 0:00:00]} 3. e3 {[%clk 0:00:00]}  c5 {[%clk 0:00:00]} 4. c3 {[%clk 0:00:00]}  Nc6 {[%clk 0:00:00]} 5. Nd2 {[%clk 0:00:00]}  Bf5 {[%clk 0:00:00]} 6. Qb3 {[%clk 0:00:00]}  Qd7 {[%clk 0:00:00]} 7. Ngf3 {[%clk 0:00:00]}  c4 {[%clk 0:00:00]} 8. Qd1 {[%clk 0:00:00]}  e6 {[%clk 0:00:00]} 9. Be2 {[%clk 0:00:00]}  Bd6 {[%clk 0:00:00]} 10. Ne5 {[%clk 0:00:00]}  Bxe5 {[%clk 0:00:00]} 11. dxe5 {[%clk 0:00:00]}  Ne4 {[%clk 0:00:00]} 12. Nxe4 {[%clk 0:00:00]}  Bxe4 {[%clk 0:00:00]} 13. O-O {[%clk 0:00:00]}  O-O {[%clk 0:00:00]} 14. Bf3 {[%clk 0:00:00]}  Bd3 {[%clk 0:00:00]} 15. Be2 {[%clk 0:00:00]}  Bxe2 {[%clk 0:00:00]} 16. Qxe2 {[%clk 0:00:00]}  Qc7 {[%clk 0:00:00]} 17. e4 {[%clk 0:00:00]}  Ne7 {[%clk 0:00:00]} 18. Bg3 {[%clk 0:00:00]}  dxe4 {[%clk 0:00:00]} 19. Qxe4 {[%clk 0:00:00]}  Rfd8 {[%clk 0:00:00]} 20. Rad1 {[%clk 0:00:00]}  Qc6 {[%clk 0:00:00]} 21. Qe2 {[%clk 0:00:00]}  b5 {[%clk 0:00:00]} 22. a3 {[%clk 0:00:00]}  a6 {[%clk 0:00:00]} 23. Rd2 {[%clk 0:00:00]}  Rd5 {[%clk 0:00:00]} 24. Rxd5 {[%clk 0:00:00]}  Nxd5 {[%clk 0:00:00]} 25. f4 {[%clk 0:00:00]}  g6 {[%clk 0:00:00]} 26. Qd2 {[%clk 0:00:00]}  Ne7 {[%clk 0:00:00]} 27. Rd1 {[%clk 0:00:00]}  Nf5 {[%clk 0:00:00]} 28. Bf2 {[%clk 0:00:00]}  h5 {[%clk 0:00:00]} 29. h3 {[%clk 0:00:00]}  Qe4 {[%clk 0:00:00]} 30. Re1 {[%clk 0:00:00]}  Qc6 {[%clk 0:00:00]} 31. g4 {[%clk 0:00:00]}  hxg4 {[%clk 0:00:00]} 32. hxg4 {[%clk 0:00:00]}  Nh6 {[%clk 0:00:00]} 33. Qe2 {[%clk 0:00:00]}  Rd8 {[%clk 0:00:00]} 34. Bd4 {[%clk 0:00:00]}  a5 {[%clk 0:00:00]} 35. Rf1 {[%clk 0:00:00]}  b4 {[%clk 0:00:00]} 36. axb4 {[%clk 0:00:00]}  axb4 {[%clk 0:00:00]} 37. Rf2 {[%clk 0:00:00]}  Rxd4 {[%clk 0:00:00]} 38. cxd4 {[%clk 0:00:00]}  c3 {[%clk 0:00:00]} 39. bxc3 {[%clk 0:00:00]}  Qxc3 {[%clk 0:00:00]} 40. Rh2 {[%clk 0:00:00]}  Qxd4+ {[%clk 0:00:00]} 41. Kh1 {[%clk 0:00:00]}  Qd5+ {[%clk 0:00:00]} 42. Qg2 {[%clk 0:00:00]}  Qd1+ {[%clk 0:00:00]} 43. Qg1 {[%clk 0:00:00]}  Qf3+ {[%clk 0:00:00]} 44. Qg2 {[%clk 0:00:00]}  Qd1+ {[%clk 0:00:00]} 45. Qg1 {[%clk 0:00:00]}  Qf3+ {[%clk 0:00:00]} 46. Qg2 {[%clk 0:00:00]}  Qd1+ {[%clk 0:00:00]} 1/2-1/2


[Site "https://www.chess.com"]

[Event "Titled Tuesday Blitz August 16 Early 2022"]
[White "Nunez V, Gustavo Eduardo"]
[Black "Martic, Ivan"]
[WhiteFideId "4403690"]
[BlackFideId "929301"]
[WhiteElo "2228"]
[BlackElo "2355"]
[Result "0-1"]
[Round "02"]
[TimeControl "180+2"]
[Date "2022.08.18"]
[WhiteClock "0:00:00"]
[BlackClock "0:00:00"]

1. e4 {[%clk 0:00:00]}  c5 {[%clk 0:00:00]} 2. Nc3 {[%clk 0:00:00]}  e6 {[%clk 0:00:00]} 3. g3 {[%clk 0:00:00]}  Nc6 {[%clk 0:00:00]} 4. Bg2 {[%clk 0:00:00]}  g6 {[%clk 0:00:00]} 5. Nge2 {[%clk 0:00:00]}  Bg7 {[%clk 0:00:00]} 6. O-O {[%clk 0:00:00]}  d6 {[%clk 0:00:00]} 7. d3 {[%clk 0:00:00]}  Nge7 {[%clk 0:00:00]} 8. Be3 {[%clk 0:00:00]}  Nd4 {[%clk 0:00:00]} 9. Qd2 {[%clk 0:00:00]}  O-O {[%clk 0:00:00]} 10. g4 {[%clk 0:00:00]}  Nec6 {[%clk 0:00:00]} 11. Ng3 {[%clk 0:00:00]}  Ne5 {[%clk 0:00:00]} 12. h3 {[%clk 0:00:00]}  Nef3+ {[%clk 0:00:00]} 13. Bxf3 {[%clk 0:00:00]}  Nxf3+ {[%clk 0:00:00]} 14. Kg2 {[%clk 0:00:00]}  Nxd2 {[%clk 0:00:00]} 15. Bxd2 {[%clk 0:00:00]}  b5 {[%clk 0:00:00]} 16. Nxb5 {[%clk 0:00:00]}  Rb8 {[%clk 0:00:00]} 17. Nxa7 {[%clk 0:00:00]}  Qc7 {[%clk 0:00:00]} 18. Nxc8 {[%clk 0:00:00]}  Rfxc8 {[%clk 0:00:00]} 19. Rab1 {[%clk 0:00:00]}  c4 {[%clk 0:00:00]} 20. b3 {[%clk 0:00:00]}  cxd3 {[%clk 0:00:00]} 21. cxd3 {[%clk 0:00:00]}  Qc2 {[%clk 0:00:00]} 22. Bf4 {[%clk 0:00:00]}  Be5 {[%clk 0:00:00]} 23. Bxe5 {[%clk 0:00:00]}  dxe5 {[%clk 0:00:00]} 24. Rfd1 {[%clk 0:00:00]}  Qxa2 {[%clk 0:00:00]} 25. b4 {[%clk 0:00:00]}  Rc2 {[%clk 0:00:00]} 26. Rf1 {[%clk 0:00:00]}  Rb2 {[%clk 0:00:00]} 27. Rbc1 {[%clk 0:00:00]}  R2xb4 {[%clk 0:00:00]} 28. h4 {[%clk 0:00:00]}  Qd2 {[%clk 0:00:00]} 29. Rcd1 {[%clk 0:00:00]}  Qf4 {[%clk 0:00:00]} 30. Kh3 {[%clk 0:00:00]}  Rb2 {[%clk 0:00:00]} 31. f3 {[%clk 0:00:00]}  Rc2 {[%clk 0:00:00]} 32. Ra1 {[%clk 0:00:00]}  Rbb2 {[%clk 0:00:00]} 33. Rh1 {[%clk 0:00:00]}  Qxf3 {[%clk 0:00:00]} 34. h5 {[%clk 0:00:00]}  Rg2 {[%clk 0:00:00]} 35. Ra8+ {[%clk 0:00:00]}  Kg7 {[%clk 0:00:00]} 36. h6+ {[%clk 0:00:00]}  Kxh6 {[%clk 0:00:00]} 37. g5+ {[%clk 0:00:00]}  Kxg5 {[%clk 0:00:00]} 0-1


[Site "https://www.chess.com"]

[Event "Titled Tuesday Blitz August 16 Early 2022"]
[White "Paravyan, David"]
[Black "Perera Alfonso, Rene Humberto"]
[WhiteFideId "4194985"]
[BlackFideId "3514722"]
[WhiteElo "2569"]
[BlackElo "2313"]
[Result "1-0"]
[Round "02"]
[TimeControl "180+1"]
[Date "2022.08.16"]
[WhiteClock "0:01:24"]
[BlackClock "0:00:09"]

1. e4 {[%clk 0:02:59]}  c5 {[%clk 0:02:59]} 2. Nf3 {[%clk 0:02:59]}  d6 {[%clk 0:02:59]} 3. d4 {[%clk 0:02:59]}  cxd4 {[%clk 0:03:00]} 4. Nxd4 {[%clk 0:03:00]}  Nf6 {[%clk 0:03:00]} 5. Nc3 {[%clk 0:03:01]}  g6 {[%clk 0:03:01]} 6. Be3 {[%clk 0:03:00]}  a6 {[%clk 0:03:01]} 7. f3 {[%clk 0:02:59]}  e5 {[%clk 0:03:00]} 8. Nb3 {[%clk 0:02:59]}  h5 {[%clk 0:03:00]} 9. Qd2 {[%clk 0:02:59]}  Be6 {[%clk 0:03:00]} 10. O-O-O {[%clk 0:02:59]}  Nbd7 {[%clk 0:03:00]} 11. Kb1 {[%clk 0:03:00]}  Rc8 {[%clk 0:03:00]} 12. Be2 {[%clk 0:03:00]}  b5 {[%clk 0:02:58]} 13. a3 {[%clk 0:03:00]}  Qc7 {[%clk 0:02:54]} 14. h3 {[%clk 0:02:58]}  h4 {[%clk 0:02:53]} 15. f4 {[%clk 0:02:58]}  Be7 {[%clk 0:02:50]} 16. Rhf1 {[%clk 0:02:58]}  Qb7 {[%clk 0:02:47]} 17. Bf3 {[%clk 0:02:47]}  b4 {[%clk 0:02:37]} 18. axb4 {[%clk 0:02:46]}  Qxb4 {[%clk 0:02:38]} 19. Nd5 {[%clk 0:02:41]}  Nxd5 {[%clk 0:02:34]} 20. exd5 {[%clk 0:02:38]}  Qxd2 {[%clk 0:02:33]} 21. Rxd2 {[%clk 0:02:36]}  Bf5 {[%clk 0:02:31]} 22. Na5 {[%clk 0:02:36]}  O-O {[%clk 0:01:37]} 23. Nc6 {[%clk 0:02:35]}  Bf6 {[%clk 0:01:37]} 24. Bg4 {[%clk 0:02:31]}  Bxg4 {[%clk 0:01:33]} 25. hxg4 {[%clk 0:02:31]}  Rfe8 {[%clk 0:01:28]} 26. g5 {[%clk 0:02:27]}  Bg7 {[%clk 0:01:16]} 27. f5 {[%clk 0:02:24]}  gxf5 {[%clk 0:00:55]} 28. Rxf5 {[%clk 0:02:25]}  f6 {[%clk 0:00:55]} 29. Rd3 {[%clk 0:02:16]}  fxg5 {[%clk 0:00:50]} 30. Rxg5 {[%clk 0:02:07]}  Kf7 {[%clk 0:00:50]} 31. Rg4 {[%clk 0:01:51]}  Rh8 {[%clk 0:00:36]} 32. Ra4 {[%clk 0:01:47]}  Ra8 {[%clk 0:00:32]} 33. Bg5 {[%clk 0:01:45]}  Bf6 {[%clk 0:00:30]} 34. Rf3 {[%clk 0:01:44]}  Kg6 {[%clk 0:00:21]} 35. Bxf6 {[%clk 0:01:34]}  Nxf6 {[%clk 0:00:22]} 36. Ne7+ {[%clk 0:01:35]}  Kf7 {[%clk 0:00:20]} 37. Nf5 {[%clk 0:01:34]}  Rad8 {[%clk 0:00:20]} 38. Rxa6 {[%clk 0:01:31]}  e4 {[%clk 0:00:17]} 39. Rf1 {[%clk 0:01:26]}  Rh5 {[%clk 0:00:13]} 40. Nxd6+ {[%clk 0:01:25]}  Kg7 {[%clk 0:00:12]} 41. Nf5+ {[%clk 0:01:24]}  Kf7 {[%clk 0:00:09]} 42. Ne3 {[%clk 0:01:24]} 1-0


[Site "https://www.chess.com"]

[Event "Titled Tuesday Blitz August 16 Early 2022"]
[White "Pasti, Aron"]
[Black "Pinheiro, Iung Alicio de O."]
[WhiteFideId "785857"]
[BlackFideId "2104350"]
[WhiteElo "2079"]
[BlackElo "2283"]
[Result "1-0"]
[Round "02"]
[TimeControl "180+2"]
[Date "2022.08.18"]
[WhiteClock "0:00:00"]
[BlackClock "0:00:00"]

1. e4 {[%clk 0:00:00]}  c5 {[%clk 0:00:00]} 2. Nf3 {[%clk 0:00:00]}  Nc6 {[%clk 0:00:00]} 3. d4 {[%clk 0:00:00]}  cxd4 {[%clk 0:00:00]} 4. Nxd4 {[%clk 0:00:00]}  e5 {[%clk 0:00:00]} 5. Nb5 {[%clk 0:00:00]}  d6 {[%clk 0:00:00]} 6. c4 {[%clk 0:00:00]}  Be7 {[%clk 0:00:00]} 7. N5c3 {[%clk 0:00:00]}  Nf6 {[%clk 0:00:00]} 8. Be2 {[%clk 0:00:00]}  O-O {[%clk 0:00:00]} 9. O-O {[%clk 0:00:00]}  Be6 {[%clk 0:00:00]} 10. Be3 {[%clk 0:00:00]}  Nd7 {[%clk 0:00:00]} 11. Nd2 {[%clk 0:00:00]}  Bg5 {[%clk 0:00:00]} 12. Bxg5 {[%clk 0:00:00]}  Qxg5 {[%clk 0:00:00]} 13. Nd5 {[%clk 0:00:00]}  Bxd5 {[%clk 0:00:00]} 14. cxd5 {[%clk 0:00:00]}  Nd4 {[%clk 0:00:00]} 15. Nc4 {[%clk 0:00:00]}  Qe7 {[%clk 0:00:00]} 16. f4 {[%clk 0:00:00]}  f6 {[%clk 0:00:00]} 17. Bg4 {[%clk 0:00:00]}  Nb6 {[%clk 0:00:00]} 18. Ne3 {[%clk 0:00:00]}  g6 {[%clk 0:00:00]} 19. h4 {[%clk 0:00:00]}  exf4 {[%clk 0:00:00]} 20. Qxd4 {[%clk 0:00:00]}  fxe3 {[%clk 0:00:00]} 21. Be6+ {[%clk 0:00:00]}  Kh8 {[%clk 0:00:00]} 22. Qxe3 {[%clk 0:00:00]}  Nc4 {[%clk 0:00:00]} 23. Qh3 {[%clk 0:00:00]}  f5 {[%clk 0:00:00]} 24. h5 {[%clk 0:00:00]}  Qg7 {[%clk 0:00:00]} 25. hxg6 {[%clk 0:00:00]}  fxe4 {[%clk 0:00:00]} 26. gxh7 {[%clk 0:00:00]}  Qxb2 {[%clk 0:00:00]} 27. Rac1 {[%clk 0:00:00]}  Qd4+ {[%clk 0:00:00]} 28. Kh1 {[%clk 0:00:00]}  Ne5 {[%clk 0:00:00]} 29. Qh6 {[%clk 0:00:00]}  Rxf1+ {[%clk 0:00:00]} 30. Rxf1 {[%clk 0:00:00]}  Nd3 {[%clk 0:00:00]} 31. Rf8+ {[%clk 0:00:00]}  Rxf8 {[%clk 0:00:00]} 32. Qxf8+ {[%clk 0:00:00]}  Kxh7 {[%clk 0:00:00]} 33. Bf5# {[%clk 0:00:00]} 1-0


[Site "https://www.chess.com"]

[Event "Titled Tuesday Blitz August 16 Early 2022"]
[White "Piesik, Piotr"]
[Black "Kotepalli, Sai Nirupama"]
[WhiteFideId "1136194"]
[BlackFideId "5039444"]
[WhiteElo "2221"]
[BlackElo "1910"]
[Result "1/2-1/2"]
[Round "02"]
[TimeControl "180+2"]
[Date "2022.08.18"]
[WhiteClock "0:00:00"]
[BlackClock "0:00:00"]

1. Nf3 {[%clk 0:00:00]}  d5 {[%clk 0:00:00]} 2. g3 {[%clk 0:00:00]}  Bf5 {[%clk 0:00:00]} 3. Bg2 {[%clk 0:00:00]}  Nf6 {[%clk 0:00:00]} 4. O-O {[%clk 0:00:00]}  g6 {[%clk 0:00:00]} 5. c4 {[%clk 0:00:00]}  c6 {[%clk 0:00:00]} 6. cxd5 {[%clk 0:00:00]}  cxd5 {[%clk 0:00:00]} 7. d3 {[%clk 0:00:00]}  Nc6 {[%clk 0:00:00]} 8. Nc3 {[%clk 0:00:00]}  Bg7 {[%clk 0:00:00]} 9. Qa4 {[%clk 0:00:00]}  d4 {[%clk 0:00:00]} 10. Nxd4 {[%clk 0:00:00]}  Qxd4 {[%clk 0:00:00]} 11. Bxc6+ {[%clk 0:00:00]}  Nd7 {[%clk 0:00:00]} 12. Qxd4 {[%clk 0:00:00]}  Bxd4 {[%clk 0:00:00]} 13. Bxb7 {[%clk 0:00:00]}  Rb8 {[%clk 0:00:00]} 14. Bg2 {[%clk 0:00:00]}  O-O {[%clk 0:00:00]} 15. Be4 {[%clk 0:00:00]}  Bh3 {[%clk 0:00:00]} 16. Bg2 {[%clk 0:00:00]}  Bg4 {[%clk 0:00:00]} 17. h3 {[%clk 0:00:00]}  Bxc3 {[%clk 0:00:00]} 18. hxg4 {[%clk 0:00:00]}  Bxb2 {[%clk 0:00:00]} 19. Rb1 {[%clk 0:00:00]}  Bc3 {[%clk 0:00:00]} 20. Be3 {[%clk 0:00:00]}  a5 {[%clk 0:00:00]} 21. g5 {[%clk 0:00:00]}  Rfc8 {[%clk 0:00:00]} 22. Rfc1 {[%clk 0:00:00]}  Bb4 {[%clk 0:00:00]} 23. Rxc8+ {[%clk 0:00:00]}  Rxc8 {[%clk 0:00:00]} 24. Rc1 {[%clk 0:00:00]}  Rxc1+ {[%clk 0:00:00]} 25. Bxc1 {[%clk 0:00:00]}  Nb6 {[%clk 0:00:00]} 26. f4 {[%clk 0:00:00]}  Na4 {[%clk 0:00:00]} 27. a3 {[%clk 0:00:00]}  Bc5+ {[%clk 0:00:00]} 28. Kf1 {[%clk 0:00:00]}  Nc3 {[%clk 0:00:00]} 29. Bf3 {[%clk 0:00:00]}  Nb5 {[%clk 0:00:00]} 30. a4 {[%clk 0:00:00]}  Nc3 {[%clk 0:00:00]} 31. Bc6 {[%clk 0:00:00]}  Kf8 {[%clk 0:00:00]} 32. e3 {[%clk 0:00:00]}  Na2 {[%clk 0:00:00]} 33. Bd2 {[%clk 0:00:00]}  Bb6 {[%clk 0:00:00]} 34. Ke2 {[%clk 0:00:00]}  e6 {[%clk 0:00:00]} 35. Bb5 {[%clk 0:00:00]}  Ke7 {[%clk 0:00:00]} 36. d4 {[%clk 0:00:00]}  f6 {[%clk 0:00:00]} 37. gxf6+ {[%clk 0:00:00]}  Kxf6 {[%clk 0:00:00]} 38. g4 {[%clk 0:00:00]}  g5 {[%clk 0:00:00]} 39. Kf3 {[%clk 0:00:00]}  gxf4 {[%clk 0:00:00]} 40. Kxf4 {[%clk 0:00:00]}  Nb4 {[%clk 0:00:00]} 41. Ke4 {[%clk 0:00:00]}  Nd5 {[%clk 0:00:00]} 42. Be1 {[%clk 0:00:00]}  Kg5 {[%clk 0:00:00]} 43. Kf3 {[%clk 0:00:00]}  Nf6 {[%clk 0:00:00]} 44. Bc4 {[%clk 0:00:00]}  e5 {[%clk 0:00:00]} 45. dxe5 {[%clk 0:00:00]}  Nxg4 {[%clk 0:00:00]} 46. e6 {[%clk 0:00:00]}  Ne5+ {[%clk 0:00:00]} 47. Ke4 {[%clk 0:00:00]}  Nxc4 {[%clk 0:00:00]} 48. e7 {[%clk 0:00:00]}  Kf6 {[%clk 0:00:00]} 49. e8=N+ {[%clk 0:00:00]}  Ke7 {[%clk 0:00:00]} 50. Ng7 {[%clk 0:00:00]}  Nxe3 {[%clk 0:00:00]} 51. Nf5+ {[%clk 0:00:00]}  Nxf5 {[%clk 0:00:00]} 52. Kxf5 {[%clk 0:00:00]}  Kf7 {[%clk 0:00:00]} 53. Kg4 {[%clk 0:00:00]}  Kg6 {[%clk 0:00:00]} 54. Kh3 {[%clk 0:00:00]}  Kf5 {[%clk 0:00:00]} 55. Kg2 {[%clk 0:00:00]}  Kg4 {[%clk 0:00:00]} 56. Bxa5 {[%clk 0:00:00]}  Bxa5 {[%clk 0:00:00]} 57. Kh1 {[%clk 0:00:00]}  Kh3 {[%clk 0:00:00]} 58. Kg1 {[%clk 0:00:00]}  h5 {[%clk 0:00:00]} 59. Kh1 {[%clk 0:00:00]}  Kg3 {[%clk 0:00:00]} 60. Kg1 {[%clk 0:00:00]}  Bb6+ {[%clk 0:00:00]} 61. Kh1 {[%clk 0:00:00]}  h4 {[%clk 0:00:00]} 62. a5 {[%clk 0:00:00]}  Ba7 {[%clk 0:00:00]} 63. a6 {[%clk 0:00:00]}  h3 {[%clk 0:00:00]} 1/2-1/2


[Site "https://www.chess.com"]

[Event "Titled Tuesday Blitz August 16 Early 2022"]
[White "Pourkashiyan, Atousa"]
[Black "Araujo Sanchez, Josue"]
[WhiteFideId "12502014"]
[BlackFideId "6416896"]
[WhiteElo "2247"]
[BlackElo "2374"]
[Result "0-1"]
[Round "02"]
[TimeControl "180+2"]
[Date "2022.08.18"]
[WhiteClock "0:00:00"]
[BlackClock "0:00:00"]

1. e4 {[%clk 0:00:00]}  c5 {[%clk 0:00:00]} 2. Nf3 {[%clk 0:00:00]}  d6 {[%clk 0:00:00]} 3. d4 {[%clk 0:00:00]}  cxd4 {[%clk 0:00:00]} 4. Nxd4 {[%clk 0:00:00]}  Nf6 {[%clk 0:00:00]} 5. Nc3 {[%clk 0:00:00]}  a6 {[%clk 0:00:00]} 6. h3 {[%clk 0:00:00]}  e5 {[%clk 0:00:00]} 7. Nb3 {[%clk 0:00:00]}  h5 {[%clk 0:00:00]} 8. Bg5 {[%clk 0:00:00]}  Be7 {[%clk 0:00:00]} 9. Be2 {[%clk 0:00:00]}  h4 {[%clk 0:00:00]} 10. Qd2 {[%clk 0:00:00]}  Be6 {[%clk 0:00:00]} 11. O-O-O {[%clk 0:00:00]}  Nbd7 {[%clk 0:00:00]} 12. f4 {[%clk 0:00:00]}  Rc8 {[%clk 0:00:00]} 13. Bf3 {[%clk 0:00:00]}  Qc7 {[%clk 0:00:00]} 14. Kb1 {[%clk 0:00:00]}  b5 {[%clk 0:00:00]} 15. Bg4 {[%clk 0:00:00]}  b4 {[%clk 0:00:00]} 16. Bxe6 {[%clk 0:00:00]}  fxe6 {[%clk 0:00:00]} 17. Na4 {[%clk 0:00:00]}  Nxe4 {[%clk 0:00:00]} 18. Qd3 {[%clk 0:00:00]}  Nxg5 {[%clk 0:00:00]} 19. fxg5 {[%clk 0:00:00]}  O-O {[%clk 0:00:00]} 20. g6 {[%clk 0:00:00]}  d5 {[%clk 0:00:00]} 21. Qe2 {[%clk 0:00:00]}  Rf5 {[%clk 0:00:00]} 22. Qxa6 {[%clk 0:00:00]}  Qxc2+ {[%clk 0:00:00]} 23. Ka1 {[%clk 0:00:00]}  Qc6 {[%clk 0:00:00]} 24. Qd3 {[%clk 0:00:00]}  Qxa4 {[%clk 0:00:00]} 25. Rc1 {[%clk 0:00:00]}  Ra8 {[%clk 0:00:00]} 26. Qb1 {[%clk 0:00:00]}  Qxb3 {[%clk 0:00:00]} 0-1


[Site "https://www.chess.com"]